bitfinex/quotes_BTCUSD_20250313
["timestamp","ask_amount","ask_price","bid_price","bid_amount"]
[1741874824716,0.012178,82113.0,82111.0,0.002001]
[1741874825079,0.255747,82112.0,82111.0,0.005001]
[1741874825287,0.255747,82112.0,82111.0,0.002001]
[1741874825666,0.255747,82112.0,82111.0,0.004001]
[1741874825867,0.243537,82123.0,82111.0,0.002001]
[1741874826069,0.96112,82132.0,82129.0,0.012175]
[1741874826246,0.96112,82132.0,82119.0,0.012177]
[1741874826247,0.012175,82130.0,82119.0,0.012177]
[1741874826609,0.96112,82132.0,82123.0,0.012176]
[1741874826810,0.243515,82131.0,82123.0,0.012176]
[1741874827025,0.012177,82118.0,82111.0,1e-06]
[1741874827232,0.0001692,82112.0,82111.0,1e-06]
[1741874827575,0.0001692,82112.0,82111.0,0.012179]
[1741874827771,0.2559162,82112.0,82111.0,1e-06]
[1741874827994,0.7438362,82112.0,82111.0,0.003001]
[1741874828195,0.255788,82099.0,82098.0,0.0003378]
[1741874828402,0.3,82104.0,82098.0,0.0003378]
[1741874828608,0.255788,82099.0,82098.0,0.0003378]
[1741874829604,0.555788,82099.0,82098.0,0.0003378]
[1741874829811,0.255872,82072.0,82057.0,0.000338]
[1741874829982,0.555872,82072.0,82057.0,0.000338]
[1741874830340,0.58051343,82072.0,82057.0,0.000338]
[1741874830746,0.59111632,82072.0,82057.0,0.000338]
[1741874830951,0.32278689,82072.0,82062.0,0.012185]
[1741874831150,0.26647489,82072.0,82057.0,0.000338]
[1741874832087,0.18832,82074.0,82073.0,0.012184]
[1741874832293,0.3,82082.0,82075.0,0.012183]
[1741874832491,0.3,82082.0,82071.0,0.0008]
[1741874832492,0.012184,82074.0,82071.0,0.0008]
[1741874832701,0.012184,82072.0,82071.0,0.0008]
[1741874833309,0.312184,82072.0,82071.0,0.0008]
[1741874833659,0.37824359,82072.0,82071.0,0.0008]
[1741874833861,0.37824359,82072.0,82056.0,0.0003378]
[1741874833862,0.012186,82061.0,82056.0,0.0003378]
[1741874834038,0.743827,82061.0,82056.0,0.0003378]
[1741874835455,0.744827,82061.0,82056.0,0.0003378]
[1741874835993,0.745827,82061.0,82056.0,0.0003378]
[1741874836388,0.83714384,82061.0,82056.0,0.0003378]
[1741874836532,0.745827,82061.0,82056.0,0.0003378]
[1741874837362,0.745827,82061.0,82047.0,0.000338]
[1741874837363,0.312186,82056.0,82052.0,8e-07]
[1741874837585,0.255997,82032.0,82031.0,0.0008]
[1741874838368,0.26680117,82032.0,82031.0,0.0008]
[1741874838975,0.01080417,82032.0,82031.0,0.01299]
[1741874839196,0.18732,82051.0,82049.0,0.012187]
[1741874839411,0.18732,82051.0,82039.0,0.012189]
[1741874839702,0.18732,82051.0,82031.0,0.0008]
[1741874839703,0.01219,82032.0,82031.0,0.0008]
[1741874839875,0.01319,82032.0,82031.0,0.0008]
[1741874840077,0.31219,82032.0,82031.0,0.0008]
[1741874840274,0.49959,82032.0,82031.0,0.0008]
[1741874841050,0.255982,82037.0,82031.0,0.0008]
[1741874841051,0.3,82039.0,82033.0,0.01219]
[1741874841247,0.31419,82032.0,82031.0,0.0008]
[1741874841700,0.255987,82035.0,82031.0,0.0008]
[1741874841907,0.3,82042.0,82037.0,0.012189]
[1741874842112,0.001,82032.0,82031.0,0.0018]
[1741874842315,0.01319,82032.0,82031.0,0.0018]
[1741874842606,0.001,82032.0,82031.0,0.0008]
[1741874842836,0.001,82032.0,82031.0,0.0018]
[1741874843056,0.01219,82032.0,82031.0,0.0018]
[1741874843302,0.012189,82036.0,82031.0,0.0018]
[1741874843503,0.01219,82032.0,82031.0,0.0018]
[1741874843712,0.255987,82036.0,82031.0,0.0018]
[1741874843914,0.255996,82033.0,82031.0,0.0028]
[1741874844227,0.01219,82032.0,82031.0,0.0028]
[1741874844430,0.255989,82035.0,82031.0,0.0018]
[1741874844641,0.012189,82036.0,82031.0,0.245608]
[1741874844866,0.012187,82053.0,82043.0,0.012188]
[1741874845067,0.243789,82039.0,82033.0,0.255994]
[1741874845302,0.3,82048.0,82040.0,0.012189]
[1741874845505,0.02433749,82059.0,82058.0,0.255916]
[1741874845709,0.02433749,82059.0,82049.0,0.012187]
[1741874845710,0.4194,82088.0,82086.0,0.255826]
[1741874845915,0.01218,82098.0,82086.0,0.255826]
[1741874845916,0.78614,82096.0,82087.0,0.243643]
[1741874846083,0.78614,82096.0,82078.0,0.012183]
[1741874846084,0.24365,82085.0,82078.0,0.012183]
[1741874846313,0.255828,82086.0,82078.0,0.012183]
[1741874846519,0.243706,82066.0,82063.0,0.047]
[1741874846703,0.012182,82082.0,82073.0,0.243683]
[1741874847035,0.012186,82061.0,82055.0,0.012186]
[1741874847249,0.3,82089.0,82064.0,0.012185]
[1741874847250,0.012183,82075.0,82064.0,0.012185]
[1741874847422,0.243679,82076.0,82069.0,0.243697]
[1741874847629,0.012183,82075.0,82069.0,0.243697]
[1741874847934,0.012183,82075.0,82068.0,0.012185]
[1741874847935,0.243665,82080.0,82068.0,0.012185]
[1741874848134,0.00918153,82097.0,82076.0,0.012183]
[1741874848135,0.012182,82084.0,82076.0,0.012183]
[1741874848341,0.012182,82082.0,82072.0,0.243687]
[1741874848564,0.012182,82084.0,82078.0,0.001]
[1741874848763,0.243651,82085.0,82078.0,0.013183]
[1741874848961,0.012181,82090.0,82078.0,0.013183]
[1741874848962,0.012182,82088.0,82079.0,0.012183]
[1741874849161,0.012182,82088.0,82078.0,0.012183]
[1741874849162,0.012184,82071.0,82068.0,0.002]
[1741874849363,0.243691,82072.0,82068.0,0.002]
[1741874849592,0.243696,82070.0,82064.0,0.012185]
[1741874849724,0.012184,82070.0,82060.0,0.012186]
[1741874849923,0.255883,82069.0,82062.0,0.012185]
[1741874850127,0.255883,82069.0,82063.0,0.012185]
[1741874850334,0.243688,82074.0,82060.0,0.255907]
[1741874850335,0.012182,82087.0,82078.0,0.255853]
[1741874850542,0.012182,82087.0,82081.0,0.012183]
[1741874850543,0.18644,82087.0,82081.0,0.012183]
[1741874850746,0.012183,82076.0,82068.0,0.259882]
[1741874850947,0.255881,82069.0,82068.0,0.004]
[1741874851372,0.255881,82069.0,82068.0,0.008]
[1741874851823,0.255881,82069.0,82068.0,0.004]
[1741874852128,0.255918,82058.0,82051.0,0.255934]
[1741874852298,0.012186,82061.0,82054.0,0.012187]
[1741874852500,0.255897,82064.0,82058.0,0.012186]
[1741874852679,0.012186,82058.0,82047.0,0.0001693]
[1741874852884,0.012186,82061.0,82053.0,0.012187]
[1741874853092,0.18644,82068.0,82067.0,0.243703]
[1741874853290,0.18644,82068.0,82067.0,0.255888]
[1741874853515,0.18644,82068.0,82067.0,0.012185]
[1741874853688,0.012185,82063.0,82053.0,0.012187]
[1741874853891,0.012186,82059.0,82051.0,0.003]
[1741874854091,0.012187,82052.0,82051.0,0.003]
[1741874855160,0.012187,82048.0,82047.0,0.0001693]
[1741874855373,0.255946,82048.0,82047.0,0.0001693]
[1741874855579,0.012185,82063.0,82056.0,0.25592]
[1741874855778,0.543733,82057.0,82052.0,0.243746]
[1741874855977,0.012186,82057.0,82052.0,0.255931]
[1741874856178,0.243741,82055.0,82051.0,0.005]
[1741874856491,0.18568,82058.0,82053.0,0.012187]
[1741874856695,0.18568,82058.0,82056.0,0.255919]
[1741874856906,0.255909,82061.0,82054.0,0.255928]
[1741874857199,0.255912,82060.0,82054.0,0.243739]
[1741874857523,0.012186,82060.0,82053.0,0.012187]
[1741874857732,0.255912,82060.0,82053.0,0.012187]
[1741874857862,0.02513308,82074.0,82057.0,0.243733]
[1741874857863,0.012185,82066.0,82057.0,0.243733]
[1741874858063,0.243712,82065.0,82059.0,0.012186]
[1741874858264,0.243712,82065.0,82052.0,0.001]
[1741874858265,0.0003386,82074.0,82073.0,0.012184]
[1741874858467,0.0003386,82074.0,82073.0,0.255869]
[1741874859875,0.0003386,82074.0,82073.0,0.261869]
[1741874860297,0.0003386,82074.0,82073.0,0.267869]
[1741874860520,0.0003386,82074.0,82073.0,2.20211084]
[1741874860721,0.0003386,82074.0,82073.0,2.24151084]
[1741874860921,0.0003386,82074.0,82073.0,2.12180985]
[1741874861730,6e-07,82074.0,82073.0,2.50223084]
[1741874861931,0.19381912,82134.0,82111.0,0.25575]
[1741874862136,0.00909912,82134.0,82111.0,0.38999184]
[1741874862346,2e-07,82112.0,82111.0,0.68999184]
[1741874862716,2e-07,82112.0,82111.0,2.18999184]
[1741874863335,2e-07,82112.0,82111.0,2.20058665]
[1741874863739,2e-07,82112.0,82111.0,2.18999184]
[1741874863963,2e-07,82112.0,82111.0,1.503]
[1741874864389,2e-07,82112.0,82111.0,1.75875]
[1741874864988,2e-07,82112.0,82111.0,0.26175]
[1741874865369,2e-07,82112.0,82111.0,0.25875]
[1741874865567,2e-07,82112.0,82111.0,0.25575]
[1741874865782,2e-07,82112.0,82111.0,0.26175]
[1741874866399,0.2435692,82112.0,82111.0,0.012]
[1741874867383,0.2557472,82112.0,82111.0,0.012]
[1741874867899,0.2557472,82112.0,82111.0,0.006]
[1741874868100,0.5557472,82112.0,82111.0,0.006]
[1741874868306,0.243602,82102.0,82095.0,0.012181]
[1741874868507,0.0121782,82112.0,82104.0,0.012179]
[1741874868710,2e-07,82112.0,82106.0,0.012179]
[1741874868951,2e-07,82112.0,82097.0,0.255791]
[1741874868952,0.243599,82103.0,82097.0,0.255791]
[1741874869351,0.243599,82103.0,82098.0,0.01218]
[1741874869506,0.012178,82111.0,82101.0,0.255782]
[1741874869708,0.243582,82108.0,82103.0,0.255772]
[1741874869933,0.243582,82108.0,82099.0,0.255788]
[1741874870453,2e-07,82112.0,82106.0,0.012179]
[1741874870651,2e-07,82112.0,82111.0,0.012178]
[1741874870849,2e-07,82112.0,82111.0,0.14763751]
[1741874871235,2e-07,82112.0,82111.0,1.64763751]
[1741874871435,2e-07,82112.0,82111.0,1.5]
[1741874871707,0.2435692,82112.0,82107.0,0.012179]
[1741874871907,2e-07,82112.0,82111.0,0.012178]
[1741874872110,2e-07,82112.0,82111.0,0.016178]
[1741874872522,0.243545,82121.0,82111.0,0.016178]
[1741874872523,0.2335682,82113.0,82111.0,0.008]
[1741874872721,0.012178,82112.0,82111.0,0.004]
[1741874872952,0.243579,82109.0,82102.0,0.243599]
[1741874873178,0.243579,82109.0,82097.0,0.243611]
[1741874873179,0.25576,82108.0,82107.0,0.004]
[1741874874268,0.01218,82096.0,82089.0,0.01131126]
[1741874874467,0.243587,82106.0,82098.0,0.01218]
[1741874874671,0.012179,82108.0,82102.0,0.012179]
[1741874874672,0.243581,82108.0,82102.0,0.012179]
[1741874874871,0.24359,82105.0,82097.0,0.255791]
[1741874875099,0.012179,82106.0,82097.0,0.255791]
[1741874875100,0.243595,82104.0,82097.0,0.255791]
[1741874875386,0.243601,82102.0,82095.0,0.012181]
[1741874875613,0.243605,82101.0,82095.0,0.012181]
[1741874875833,0.243593,82104.0,82095.0,0.012181]
[1741874876067,0.24364,82089.0,82084.0,0.243649]
[1741874876286,0.243655,82084.0,82077.0,0.012183]
[1741874876487,0.012181,82092.0,82080.0,0.243664]
[1741874876488,0.243645,82087.0,82080.0,0.243664]
[1741874876661,0.243643,82088.0,82083.0,0.012182]
[1741874876838,0.243638,82089.0,82083.0,0.012182]
[1741874877065,0.243646,82087.0,82081.0,0.255842]
[1741874877248,0.243658,82083.0,82077.0,0.243672]
[1741874877585,0.0003384,82112.0,82092.0,0.012181]
[1741874877781,0.0003384,82112.0,82103.0,0.012179]
[1741874877984,0.0003384,82112.0,82110.0,0.012178]
[1741874878154,0.0003384,82112.0,82108.0,0.012179]
[1741874878362,0.0003384,82112.0,82106.0,0.012179]
[1741874878663,0.2439104,82112.0,82107.0,0.255761]
[1741874878819,0.243577,82110.0,82104.0,0.012179]
[1741874879018,0.243581,82109.0,82101.0,0.2436]
[1741874879221,0.0003384,82112.0,82101.0,0.2436]
[1741874879222,0.0003384,82112.0,82105.0,0.24359]
[1741874879425,0.0003384,82112.0,82106.0,0.243587]
[1741874879621,0.0003384,82112.0,82108.0,0.255758]
[1741874879847,0.243574,82111.0,82104.0,0.255771]
[1741874880046,0.0003384,82112.0,82110.0,0.243574]
[1741874880228,0.0003384,82112.0,82110.0,0.255752]
[1741874880423,0.0003384,82112.0,82108.0,0.243581]
[1741874880661,0.2439094,82112.0,82105.0,0.24359]
[1741874881009,0.012179,82108.0,82097.0,0.243611]
[1741874881217,0.243584,82107.0,82100.0,0.01218]
[1741874881387,0.0003384,82112.0,82108.0,0.012179]
[1741874881592,0.0003384,82112.0,82098.0,0.01218]
[1741874881593,0.012179,82108.0,82098.0,0.01218]
[1741874881803,0.243623,82095.0,82078.0,0.012183]
[1741874882012,0.243641,82088.0,82082.0,0.243657]
[1741874882219,0.243641,82088.0,82074.0,0.243679]
[1741874882220,0.012179,82107.0,82095.0,0.012181]
[1741874882427,0.243614,82098.0,82090.0,0.243634]
[1741874882631,0.243564,82114.0,82106.0,0.012179]
[1741874882834,0.425421,82122.0,82111.0,0.25575]
[1741874883042,0.425421,82122.0,82108.0,0.012179]
[1741874883043,0.012177,82118.0,82108.0,0.012179]
[1741874883253,0.02297579,82117.0,82105.0,0.012179]
[1741874883469,0.243587,82107.0,82102.0,0.243596]
[1741874883666,0.243572,82111.0,82103.0,0.012179]
[1741874883874,0.0125164,82112.0,82106.0,0.012179]
[1741874883875,0.0003384,82112.0,82106.0,0.012179]
[1741874884080,0.0003384,82112.0,82111.0,0.25575]
[1741874884288,0.0003384,82112.0,82108.0,0.25576]
[1741874884502,0.0003384,82112.0,82100.0,0.243603]
[1741874884503,0.0125164,82112.0,82100.0,0.243603]
[1741874884714,0.0003384,82112.0,82109.0,0.243578]
[1741874884926,0.243597,82103.0,82096.0,0.243616]
[1741874885127,0.0023384,82112.0,82106.0,0.012179]
[1741874885333,0.0023384,82112.0,82102.0,0.012179]
[1741874885673,0.0023384,82112.0,82108.0,0.24358]
[1741874885674,0.0003384,82112.0,82108.0,0.24358]
[1741874885884,0.0023384,82112.0,82108.0,0.24358]
[1741874886084,0.0023384,82112.0,82110.0,0.243573]
[1741874886290,0.012179,82108.0,82083.0,0.0811]
[1741874886495,0.243598,82103.0,82092.0,0.012181]
[1741874886697,0.01218,82100.0,82089.0,0.012181]
[1741874886867,0.243617,82096.0,82089.0,0.012181]
[1741874887425,0.02498569,82128.0,82104.0,0.012179]
[1741874887585,0.431574,82138.0,82111.0,0.25575]
[1741874887788,0.012176,82127.0,82111.0,0.25575]
[1741874887986,0.0023384,82112.0,82111.0,0.25575]
[1741874888437,4e-07,82112.0,82111.0,0.68899184]
[1741874888618,4e-07,82112.0,82111.0,0.70023478]
[1741874888837,4e-07,82112.0,82111.0,0.75023403]
[1741874889012,0.0003386,82157.0,82138.0,0.255666]
[1741874889206,0.243481,82142.0,82138.0,0.012174]
[1741874889545,0.243481,82142.0,82136.0,0.012174]
[1741874889755,0.012171,82156.0,82138.0,0.27020685]
[1741874889932,0.243467,82147.0,82135.0,0.012175]
[1741874890134,0.243463,82148.0,82138.0,0.255666]
[1741874890350,0.243468,82147.0,82138.0,0.255666]
[1741874890520,0.243468,82147.0,82138.0,1.755666]
[1741874890740,0.01093251,82159.0,82138.0,1.88990784]
[1741874890940,0.10535263,82188.0,82138.0,1.88990784]
[1741874891140,0.243453,82152.0,82138.0,1.88990784]
[1741874891370,0.24348,82143.0,82138.0,1.5]
[1741874891767,0.243465,82148.0,82138.0,1.512174]
[1741874891967,0.243465,82148.0,82138.0,1.516174]
[1741874892181,0.2438272,82139.0,82138.0,0.004]
[1741874892610,0.2438272,82139.0,82127.0,0.012176]
[1741874892611,0.012175,82129.0,82112.0,0.192938]
[1741874892861,0.012177,82116.0,82103.0,0.193059]
[1741874893081,0.3003382,82139.0,82111.0,0.24357]
[1741874893082,0.243549,82119.0,82111.0,0.24357]
[1741874893285,0.243543,82121.0,82114.0,0.243563]
[1741874893491,0.243506,82134.0,82122.0,0.012177]
[1741874893686,0.0003382,82139.0,82138.0,0.255666]
[1741874894283,0.0003382,82139.0,82138.0,0.37536699]
[1741874894820,0.0003382,82139.0,82138.0,0.012174]
[1741874895215,0.0003382,82139.0,82131.0,0.012175]
[1741874895417,0.0003382,82139.0,82104.0,0.0049999]
[1741874895418,0.243508,82133.0,82124.0,0.012176]
[1741874895614,0.24351,82132.0,82125.0,0.255705]
[1741874895756,0.0125122,82139.0,82135.0,0.012175]
[1741874895757,0.0003382,82139.0,82135.0,0.012175]
[1741874896113,0.0003382,82139.0,82138.0,0.012174]
[1741874896271,0.0003382,82139.0,82138.0,0.017174]
[1741874896703,0.0003382,82139.0,82138.0,0.1476332]
[1741874896874,0.0003382,82139.0,82138.0,0.14763305]
[1741874897101,0.0003386,82144.0,82138.0,0.14763305]
[1741874897102,8e-07,82154.0,82153.0,0.25562]
[1741874897298,8e-07,82154.0,82153.0,0.38986184]
[1741874897684,8e-07,82154.0,82151.0,0.243451]
[1741874897881,8e-07,82154.0,82147.0,0.012173]
[1741874898126,8e-07,82154.0,82132.0,0.012175]
[1741874898127,0.243495,82138.0,82132.0,0.012175]
[1741874898341,0.243529,82126.0,82118.0,0.255727]
[1741874898549,0.012174,82141.0,82129.0,0.012175]
[1741874898720,0.24352,82129.0,82120.0,0.25572]
[1741874898923,0.012175,82134.0,82121.0,0.255717]
[1741874899124,0.012175,82134.0,82121.0,0.012177]
[1741874899125,0.243522,82128.0,82121.0,0.012177]
[1741874899325,0.243521,82129.0,82124.0,0.012176]
[1741874899590,0.243514,82131.0,82123.0,0.012176]
[1741874899718,0.243519,82130.0,82124.0,0.25571]
[1741874899919,0.243524,82128.0,82123.0,0.012176]
[1741874900120,0.243529,82126.0,82119.0,0.255723]
[1741874900327,0.012175,82134.0,82123.0,0.243537]
[1741874900528,0.243504,82135.0,82124.0,1.514176]
[1741874900729,0.0001692,82195.0,82125.0,0.1209186]
[1741874900730,0.012172,82152.0,82125.0,0.1209186]
[1741874900923,0.012174,82140.0,82128.0,0.243522]
[1741874901123,0.012173,82145.0,82132.0,0.012175]
[1741874901328,0.243498,82136.0,82132.0,1.5]
[1741874901533,0.243498,82136.0,82120.0,0.255722]
[1741874901534,0.012175,82133.0,82120.0,0.255722]
[1741874901734,0.243501,82135.0,82128.0,0.243519]
[1741874901949,0.243501,82135.0,82129.0,1.5]
[1741874902149,0.243507,82134.0,82129.0,1.743516]
[1741874902349,0.243501,82135.0,82129.0,1.755691]
[1741874902610,0.2543905,82140.0,82129.0,1.755691]
[1741874902611,0.012174,82142.0,82134.0,0.243502]
[1741874902774,0.365129,82163.0,82129.0,1.5]
[1741874902775,0.012175,82132.0,82129.0,1.5]
[1741874903094,0.012177,82116.0,82107.0,0.012179]
[1741874903251,0.243536,82124.0,82117.0,0.243552]
[1741874903449,0.012175,82134.0,82115.0,0.012178]
[1741874903651,0.012177,82122.0,82114.0,0.012178]
[1741874903853,0.0829,82145.0,82114.0,0.012178]
[1741874903854,0.3,82143.0,82128.0,0.012176]
[1741874904053,0.243484,82141.0,82133.0,0.012175]
[1741874904257,0.243492,82139.0,82133.0,0.012175]
[1741874904574,0.012175,82133.0,82125.0,0.012176]
[1741874904775,0.012175,82135.0,82127.0,0.012176]
[1741874904978,0.012175,82134.0,82127.0,0.012176]
[1741874905212,0.3,82144.0,82117.0,0.0032176]
[1741874905213,0.012176,82125.0,82117.0,0.002]
[1741874905419,0.255728,82118.0,82117.0,0.002]
[1741874905607,0.255717,82122.0,82117.0,0.002]
[1741874905829,0.4381141,82150.0,82102.0,0.19271331]
[1741874905830,0.012178,82110.0,82103.0,0.243594]
[1741874905967,0.312179,82103.0,82102.0,0.01135331]
[1741874906774,0.32323492,82103.0,82102.0,0.01135331]
[1741874906980,0.48256041,82103.0,82102.0,0.01135331]
[1741874907186,0.012181,82091.0,82084.0,0.0123512]
[1741874907406,0.012181,82092.0,82084.0,0.0001692]
[1741874907591,0.012182,82088.0,82084.0,0.0001692]
[1741874907797,0.255812,82092.0,82086.0,0.012182]
[1741874908000,0.012181,82091.0,82084.0,0.0001692]
[1741874908197,0.243643,82087.0,82084.0,0.0001692]
[1741874908583,0.012182,82085.0,82084.0,0.0001692]
[1741874908854,0.3,82096.0,82084.0,0.0001692]
[1741874909063,0.01218,82096.0,82084.0,0.0001692]
[1741874909262,0.243626,82094.0,82086.0,0.012182]
[1741874909461,0.255801,82095.0,82088.0,0.012182]
[1741874909661,0.255801,82095.0,82084.0,0.0001692]
[1741874909662,0.012181,82093.0,82084.0,0.0001692]
[1741874909806,0.012181,82091.0,82084.0,0.0001692]
[1741874910004,0.243635,82090.0,82084.0,0.0001692]
[1741874910262,0.24364,82089.0,82084.0,0.0001692]
[1741874910496,0.255812,82092.0,82085.0,0.012182]
[1741874910703,0.243599,82102.0,82094.0,0.012181]
[1741874910871,0.01218,82099.0,82092.0,0.012181]
[1741874911070,0.243604,82101.0,82094.0,0.012181]
[1741874911308,0.255788,82099.0,82092.0,0.012181]
[1741874911510,0.255788,82099.0,81857.0,0.00044]
[1741874911511,0.243611,82098.0,82089.0,0.255817]
[1741874911694,0.243611,82098.0,82091.0,0.243632]
[1741874911895,0.012177,82117.0,82109.0,0.012178]
[1741874912093,0.243587,82106.0,82102.0,0.012179]
[1741874912694,0.255775,82103.0,82096.0,0.01218]
[1741874912906,0.012181,82095.0,82087.0,0.012182]
[1741874913110,0.012182,82088.0,82084.0,0.0001692]
[1741874913691,0.255831,82085.0,82084.0,0.0001692]
[1741874913900,0.243646,82087.0,82084.0,0.0001692]
[1741874914094,0.255831,82085.0,82084.0,0.0001692]
[1741874914743,0.555831,82085.0,82084.0,0.0001692]
[1741874914982,0.555831,82085.0,82068.0,0.0001693]
[1741874914983,0.255881,82069.0,82068.0,0.0001693]
[1741874915185,0.54367,82078.0,82071.0,0.243691]
[1741874915401,0.243683,82074.0,82068.0,0.2560513]
[1741874915608,0.243688,82073.0,82068.0,0.0001693]
[1741874915812,0.012182,82086.0,82075.0,0.012183]
[1741874916015,0.243697,82069.0,82068.0,0.0001693]
[1741874916219,0.012184,82072.0,82068.0,0.0001693]
[1741874916423,0.255874,82072.0,82068.0,0.0001693]
[1741874916632,0.255881,82069.0,82068.0,0.0001693]
[1741874916834,0.255834,82084.0,82078.0,0.012183]
[1741874917060,0.012183,82075.0,82063.0,0.012185]
[1741874917265,0.243667,82079.0,82071.0,0.012184]
[1741874917413,0.012183,82078.0,82073.0,0.255866]
[1741874917616,0.012183,82076.0,82070.0,0.012184]
[1741874917794,0.255859,82077.0,82071.0,0.255875]
[1741874917995,0.012183,82075.0,82070.0,0.012184]
[1741874918219,0.243688,82072.0,82068.0,0.0001693]
[1741874918445,0.255866,82074.0,82068.0,0.2438663]
[1741874918659,0.255871,82073.0,82068.0,0.0001693]
[1741874918987,0.012184,82069.0,82068.0,0.0001693]
[1741874919190,0.255872,82072.0,82070.0,0.002]
[1741874919365,0.012184,82071.0,82070.0,0.002]
[1741874919553,0.243694,82070.0,82068.0,0.0001693]
[1741874919710,0.255872,82072.0,82068.0,0.0001693]
[1741874919921,0.012184,82069.0,82068.0,0.0001693]
[1741874920325,0.24369,82072.0,82068.0,0.0031693]
[1741874920518,0.255866,82074.0,82068.0,0.0153543]
[1741874920728,0.012184,82069.0,82068.0,0.0031693]
[1741874920952,0.012184,82069.0,82068.0,0.0021693]
[1741874921157,0.012184,82069.0,82068.0,0.0041693]
[1741874921356,0.243691,82071.0,82068.0,0.0021693]
[1741874921564,0.012184,82069.0,82068.0,0.0021693]
[1741874921767,0.012184,82069.0,82068.0,0.0031693]
[1741874921978,0.012184,82069.0,82068.0,0.0021693]
[1741874922192,0.01114217,82072.0,82068.0,0.0021693]
[1741874922463,0.012183,82081.0,82068.0,0.0021693]
[1741874922464,0.012184,82073.0,82068.0,0.0021693]
[1741874922858,0.255875,82072.0,82068.0,0.0021693]
[1741874923025,0.243691,82072.0,82068.0,0.0021693]
[1741874923228,0.243697,82070.0,82068.0,0.0021693]
[1741874923469,0.012184,82069.0,82068.0,0.0021693]
[1741874923851,0.012184,82069.0,82068.0,0.0001693]
[1741874924054,0.012184,82069.0,82068.0,0.0021693]
[1741874924258,0.25489205,82073.0,82068.0,0.0163543]
[1741874924454,0.01120405,82073.0,82072.0,0.012184]
[1741874924622,0.012182,82082.0,82072.0,0.012184]
[1741874924826,0.012182,82086.0,82077.0,0.012183]
[1741874925128,0.012183,82076.0,82070.0,0.012184]
[1741874925330,0.255824,82088.0,82068.0,0.0001693]
[1741874925534,0.02421625,82093.0,82092.0,0.243629]
[1741874925804,0.02421625,82093.0,82092.0,0.37551099]
[1741874925969,0.243537,82123.0,82116.0,0.012177]
[1741874926169,0.10535263,82131.0,82126.0,0.012176]
[1741874926389,0.10535263,82131.0,82130.0,0.012175]
[1741874926553,0.012175,82130.0,82120.0,0.243543]
[1741874926764,0.012177,82122.0,82104.0,0.012179]
[1741874926964,0.012177,82118.0,82102.0,0.0495]
[1741874927201,0.243609,82099.0,82092.0,0.01454085]
[1741874927405,0.243614,82097.0,82093.0,0.11970099]
[1741874927618,0.01218,82100.0,82086.0,0.012182]
[1741874927825,0.01218,82100.0,82083.0,0.058082]
[1741874927826,0.243632,82091.0,82084.0,0.012182]
[1741874928234,0.24362,82097.0,82088.0,0.012182]
[1741874928453,0.3,82108.0,82101.0,0.01218]
[1741874928665,0.012179,82102.0,82090.0,0.012181]
[1741874928878,0.012178,82110.0,82098.0,0.243611]
[1741874929074,0.243597,82103.0,82096.0,0.255796]
[1741874929279,0.243581,82108.0,82100.0,0.01218]
[1741874929573,0.17912,82121.0,82116.0,0.012177]
[1741874929825,0.012178,82114.0,82099.0,0.01218]
[1741874930077,0.243573,82111.0,82104.0,0.25577]
[1741874930213,0.243572,82111.0,82104.0,0.25577]
[1741874930449,0.243572,82111.0,82099.0,0.01218]
[1741874930450,0.4871221,82144.0,82094.0,0.01454085]
[1741874930649,0.96353486,82128.0,82124.0,0.012176]
[1741874930873,0.012175,82129.0,82121.0,0.012177]
[1741874931132,0.243528,82126.0,82119.0,0.012177]
[1741874931621,0.243539,82123.0,82117.0,0.012177]
[1741874931827,0.243528,82126.0,82118.0,0.255726]
[1741874932032,0.4872156,82157.0,82128.0,0.012176]
[1741874932033,0.012174,82138.0,82128.0,0.012176]
[1741874932247,0.012175,82131.0,82124.0,0.003]
[1741874932450,0.255707,82125.0,82124.0,0.002]
[1741874933412,0.243564,82114.0,82109.0,0.255755]
[1741874934030,0.243606,82100.0,82087.0,1.5]
[1741874934245,0.243584,82107.0,82098.0,0.243611]
[1741874934447,0.012178,82112.0,82105.0,0.255769]
[1741874934691,0.17788,82126.0,82081.0,0.06004085]
[1741874934692,0.3,82125.0,82124.0,0.243534]
[1741874934819,0.312176,82125.0,82116.0,0.012177]
[1741874935020,0.00917921,82138.0,82106.0,0.11970099]
[1741874935021,0.012174,82139.0,82107.0,0.00121775]
[1741874935263,0.012174,82139.0,82101.0,0.01454085]
[1741874935264,0.012177,82121.0,82113.0,0.012178]
[1741874935480,0.012177,82121.0,82112.0,0.243567]
[1741874935481,0.012177,82120.0,82112.0,0.255746]
[1741874935640,0.243563,82114.0,82109.0,0.246575]
[1741874935840,0.255713,82123.0,82116.0,0.243555]
[1741874936059,0.243543,82121.0,82114.0,0.243561]
[1741874936244,0.012177,82119.0,82110.0,0.012178]
[1741874936443,0.012177,82122.0,82110.0,0.012178]
[1741874936652,0.255734,82116.0,82110.0,0.012178]
[1741874937183,0.255731,82118.0,82110.0,0.012178]
[1741874937454,0.243519,82129.0,82118.0,0.243551]
[1741874937652,0.002,82139.0,82137.0,0.012174]
[1741874937856,0.012176,82126.0,82118.0,0.012177]
[1741874938187,0.243548,82120.0,82113.0,0.255744]
[1741874938402,0.243548,82120.0,82110.0,0.246575]
[1741874938403,0.24357,82112.0,82110.0,0.003]
[1741874938613,0.012178,82111.0,82110.0,0.003]
[1741874938786,0.24356,82115.0,82108.0,0.25576]
[1741874939017,0.255725,82120.0,82118.0,0.002]
[1741874939171,0.243553,82118.0,82113.0,0.255742]
[1741874939369,0.012177,82121.0,82113.0,0.255742]
[1741874939370,0.243531,82125.0,82119.0,0.243546]